bitfinex/quotes_ETHUSD_20220201
["timestamp","ask_amount","ask_price","bid_price","bid_amount"]
[1643748751887,23.39910594,2781.0,2780.7,0.95]
[1643748752086,21.3597,2781.0,2780.7,0.95]
[1643748752286,0.36670883,2780.9,2780.7,0.95]
[1643748752591,0.1797,2780.8,2780.7,0.95]
[1643748752989,0.1797,2780.9,2780.7,0.95]
[1643748753197,0.1797,2781.0,2780.7,0.95]
[1643748753592,0.60367765,2781.0,2780.7,0.95]
[1643748753992,21.78367765,2781.0,2780.7,0.95]
[1643748754192,0.1797,2781.0,2780.7,0.95]
[1643748754614,21.18,2780.9,2780.7,0.95]
[1643748755013,0.1797,2781.0,2780.7,0.95]
[1643748755616,21.3597,2781.0,2780.7,0.95]
[1643748755814,0.1797,2781.0,2780.7,0.95]
[1643748756017,0.1797,2781.2,2780.7,0.95]
[1643748756216,1.1117,2781.3,2780.7,0.95]
[1643748756819,1.27721101,2781.2,2780.7,0.95]
[1643748757018,3.3501403,2781.2,2780.7,0.95]
[1643748757217,24.7098403,2781.2,2780.7,0.95]
[1643748759776,25.0098403,2781.2,2780.7,0.95]
[1643748759976,2.01991951,2781.1,2780.7,0.95]
[1643748760176,2.01923076,2781.1,2780.7,0.95]
[1643748760380,22.93691101,2781.2,2780.7,0.95]
[1643748760576,1.75691101,2781.2,2780.7,0.95]
[1643748760780,0.4797,2781.2,2780.7,0.95]
[1643748760978,0.1797,2781.2,2780.7,1.25]
[1643748761179,0.518,2782.5,2780.7,1.25]
[1643748761180,0.1797,2781.6,2780.7,1.25]
[1643748761380,0.1797,2782.3,2780.8,1.1285]
[1643748761812,0.1797,2782.3,2781.0,0.8989]
[1643748762014,1.06962857,2782.0,2781.1,0.72373162]
[1643748762214,0.1797,2782.3,2781.1,1.02373162]
[1643748763217,1.30992352,2782.2,2781.1,1.02373162]
[1643748763416,0.1797,2782.1,2781.3,0.89882]
[1643748763819,0.1797,2782.1,2781.1,0.3]
[1643748764218,21.3597,2782.1,2780.9,3.75428239]
[1643748764418,21.3597,2782.1,2781.0,0.8989]
[1643748764816,21.3597,2782.1,2781.1,0.3]
[1643748765018,21.3597,2782.1,2781.1,1.10996642]
[1643748766286,21.3597,2782.1,2781.0,0.8989]
[1643748766487,21.83904,2782.1,2780.9,1.0]
[1643748766787,21.83904,2782.1,2780.8,10.03788]
[1643748766986,0.33180384,2781.7,2780.8,10.4079187]
[1643748767187,0.33180384,2781.7,2780.8,10.03788]
[1643748767385,0.33180384,2781.7,2780.8,8.2401]
[1643748767386,0.67134276,2781.5,2780.8,8.2401]
[1643748767588,0.33180384,2781.7,2780.8,1.1285]
[1643748767786,0.63180384,2781.7,2780.8,1.1285]
[1643748767989,0.63180384,2781.7,2780.8,2.02748]
[1643748768193,0.33180384,2781.7,2780.8,1.1285]
[1643748768393,21.51180384,2781.7,2780.7,0.95]
[1643748768691,0.68128263,2781.4,2780.7,0.95]
[1643748769091,0.98128263,2781.4,2780.7,0.95]
[1643748769718,0.40338782,2781.1,2780.7,0.95]
[1643748769916,0.9237831,2780.9,2780.7,0.95]
[1643748770516,1.2237831,2780.9,2780.7,0.95]
[1643748770918,2.77934,2780.8,2780.7,0.95]
[1643748771119,22.4037831,2780.9,2780.7,0.95]
[1643748771317,21.18,2780.8,2780.7,0.95]
[1643748771519,1.2237831,2780.9,2780.8,0.00107607]
[1643748771718,1.2237831,2780.9,2780.7,0.95]
[1643748773068,22.4037831,2780.9,2780.7,0.95]
[1643748773469,1.2237831,2780.9,2780.7,0.95]
[1643748773670,0.3,2780.9,2780.7,0.95]
[1643748773869,0.65904,2781.0,2780.7,0.95]
[1643748774069,0.47934,2781.0,2780.7,0.95]
[1643748774270,0.1797,2781.2,2780.7,1.25]
[1643748774469,0.17934,2781.5,2780.7,1.25]
[1643748774669,0.1797,2781.4,2780.7,1.25]
[1643748774868,0.1797,2781.4,2780.7,1.73890206]
[1643748775774,0.1797,2781.4,2780.7,2.63794206]
[1643748775970,0.47934,2781.5,2780.7,2.63794206]
[1643748776169,0.47934,2781.5,2780.7,1.84904]
[1643748776369,21.65934,2781.5,2780.7,0.95]
[1643748776839,21.83904,2781.5,2780.7,0.95]
[1643748777040,0.35904,2781.5,2780.7,1.25]
[1643748777243,4.4564,2782.3,2780.7,1.25]
[1643748777244,0.1797,2781.6,2780.7,2.14904]
[1643748777440,0.17934,2781.8,2780.7,7.47420706]
[1643748777641,0.1797,2781.7,2780.7,7.44656471]
[1643748777842,0.17860795,2781.7,2780.8,1.0]
[1643748778045,1.1343,2782.3,2780.8,1.0]
[1643748778046,0.41992089,2781.8,2780.9,4.49798196]
[1643748778247,0.41992089,2781.8,2781.0,1.91981293]
[1643748778450,0.73172432,2781.9,2781.0,1.91981293]
[1643748778746,0.1797,2782.2,2781.3,0.3]
[1643748778946,1.69791737,2782.1,2781.3,0.3]
[1643748779246,1.69827737,2782.0,2781.3,0.3]
[1643748779449,0.32217203,2781.8,2781.3,0.3]
[1643748779650,0.3,2782.0,2781.1,2.90023978]
[1643748779846,0.3,2782.0,2781.3,0.3]
[1643748779847,1.69833945,2781.9,2781.3,0.3]
[1643748780047,0.1797,2781.9,2781.3,0.3]
[1643748780247,0.47934,2782.0,2781.3,0.3]
[1643748780669,0.47934,2782.0,2781.0,1.0]
[1643748780869,1.10804344,2781.9,2781.1,0.92455448]
[1643748781175,0.38578386,2781.9,2781.1,1.22455448]
[1643748781770,0.38578386,2781.9,2781.3,0.89887]
[1643748781970,0.17934,2782.0,2781.3,0.89887]
[1643748782770,0.92402147,2782.2,2781.3,0.89887]
[1643748782972,1.51848291,2782.1,2781.3,0.89887]
[1643748783177,0.92402147,2782.2,2781.3,0.89887]
[1643748783576,1.51848523,2782.1,2781.3,0.89887]
[1643748784180,0.1797,2782.3,2781.3,0.89887]
[1643748784433,0.1797,2782.6,2781.4,0.518]
[1643748784629,0.17934,2782.9,2781.4,0.518]
[1643748784630,1.51827806,2782.5,2781.4,0.518]
[1643748784829,0.1797,2782.8,2781.6,0.90549715]
[1643748785027,1.92292927,2782.7,2781.9,0.80742692]
[1643748785227,0.40472286,2782.7,2781.9,1.10742692]
[1643748785429,0.70472286,2782.7,2781.9,1.10742692]
[1643748785628,1.51823576,2782.6,2781.9,1.10742692]
[1643748786029,1.39805286,2782.8,2781.9,1.10742692]
[1643748786229,1.81823094,2782.7,2781.9,1.10742692]
[1643748786432,1.39805286,2782.8,2781.9,1.10742692]
[1643748786632,0.1797,2782.8,2782.0,0.89858]
[1643748786831,0.1797,2783.0,2782.0,1.89858]
[1643748787030,1.51816117,2782.9,2782.2,0.3]
[1643748787231,0.1796,2782.8,2782.2,0.3]
[1643748787630,0.1796,2783.0,2782.0,1.3]
[1643748787830,1.51816796,2782.9,2782.0,1.3]
[1643748788067,24.58795472,2783.3,2782.3,0.89858]
[1643748788068,0.1796,2782.8,2782.3,0.89858]
[1643748788271,21.18,2783.3,2782.3,1.19858]
[1643748788272,0.1796,2783.2,2782.3,1.19858]
[1643748789175,0.51100996,2783.2,2782.3,1.19858]
[1643748789372,0.33140996,2783.2,2782.3,1.19858]
[1643748789773,1.51809397,2783.1,2782.5,0.8985]
[1643748790272,0.94547913,2782.9,2782.5,1.1985]
[1643748790475,2.00509005,2782.8,2782.0,3.01928]
[1643748790673,2.00509005,2782.8,2782.0,1.2222]
[1643748790674,0.44109973,2782.4,2782.0,1.2222]
[1643748790885,2.18469005,2782.8,2781.7,3.4838]
[1643748790886,23.36469005,2782.8,2781.7,3.4838]
[1643748791074,1.51832633,2782.7,2781.7,3.4838]
[1643748791277,2.18338645,2782.6,2781.7,3.2338]
[1643748791475,2.18338645,2782.6,2781.8,1.8513145]
[1643748791476,0.1797,2782.6,2781.8,1.8513145]
[1643748791683,1.24547913,2782.9,2781.8,1.8513145]
[1643748791684,0.1797,2782.8,2781.8,1.8513145]
[1643748791925,0.38216604,2782.7,2781.9,0.3]
[1643748792528,0.1797,2782.8,2781.9,0.3]
[1643748792727,0.1797,2782.8,2782.0,0.89863]
[1643748792928,0.1797,2782.8,2782.2,0.3]
[1643748794334,0.1797,2782.8,2782.1,0.89859]
[1643748794732,0.1797,2782.8,2782.2,0.3]
[1643748795334,0.62296028,2782.8,2782.2,0.3]
[1643748796176,0.62296028,2782.8,2781.9,3.09716]
[1643748796573,0.62296028,2782.8,2781.9,3.98975487]
[1643748798277,21.80296028,2782.8,2781.9,3.98975487]
[1643748798478,21.80296028,2782.8,2781.9,3.09609583]
[1643748798777,0.92296028,2782.8,2782.1,0.89863]
[1643748798977,0.62296028,2782.8,2782.1,0.89863]
[1643748799316,0.62296028,2782.8,2782.2,0.3]
[1643748799526,21.80296028,2782.8,2782.2,0.3]
[1643748799918,0.62296028,2782.8,2782.2,0.8986]
[1643748800117,0.62296028,2782.8,2782.2,1.1986]
[1643748800518,1.5183689,2782.7,2782.1,0.89861]
[1643748800819,1.5183689,2782.7,2781.9,3.09609583]
[1643748801020,1.99504165,2782.6,2781.9,1.3]
[1643748801219,1.99504165,2782.6,2781.8,1.3]
[1643748801421,1.97921568,2782.7,2781.8,1.3]
[1643748801822,1.97921568,2782.7,2781.7,1.3]
[1643748802022,21.18,2782.5,2781.7,1.3]
[1643748802221,0.92296028,2782.8,2781.7,1.3]
[1643748802420,21.18,2782.6,2781.7,1.3]
[1643748802621,21.18,2782.4,2781.5,8.3571]
[1643748802820,0.74883261,2782.1,2781.5,5.0894]
[1643748803066,0.74883261,2782.1,2781.5,1.2065]
[1643748803272,0.74883261,2782.1,2781.2,0.67779652]
[1643748803671,0.74883261,2782.1,2781.0,5.53775]
[1643748803873,0.33102163,2781.9,2781.1,0.3]
[1643748804076,0.33102163,2781.9,2781.1,1.25]
[1643748805574,0.33102163,2781.9,2781.3,1.79774]
[1643748805776,0.33102163,2781.9,2781.3,2.79774]
[1643748806075,0.74883261,2782.1,2781.3,1.89887]
[1643748806276,2.39355671,2782.5,2781.4,0.3]
[1643748806477,0.1797,2782.5,2781.4,0.3]
[1643748806676,1.51852166,2782.4,2781.4,0.3]
[1643748806918,0.1797,2782.3,2781.4,0.3]
[1643748807218,0.62559537,2782.3,2781.4,0.3]
[1643748807521,0.912557,2782.2,2781.4,0.3]
[1643748807718,0.912557,2782.2,2781.5,0.89881]
[1643748807920,0.1797,2782.3,2781.6,0.89879]
[1643748808124,0.1797,2782.3,2781.6,1.19879]
[1643748808329,0.1797,2782.6,2781.7,1.79723]
[1643748808523,0.1797,2782.9,2781.7,1.79723]
[1643748808725,1.51834805,2782.8,2781.7,1.79723]
[1643748808922,1.69804805,2782.7,2781.9,0.71216841]
[1643748809123,1.69804805,2782.7,2782.1,0.89862]
[1643748809124,1.51834805,2782.6,2782.1,0.89862]
[1643748809425,1.51834805,2782.6,2782.0,1.0]
[1643748809624,21.18,2782.4,2781.6,1.79739]
[1643748809824,1.51834805,2782.6,2781.0,3.7402]
[1643748809825,21.18,2782.2,2781.0,3.7402]
[1643748810036,25.11030143,2782.1,2781.0,3.5605]
[1643748810226,0.95404165,2781.8,2781.0,3.3105]
[1643748810422,0.95404165,2781.8,2781.1,0.89894]
[1643748810676,0.95404165,2781.8,2781.1,1.79786]
[1643748810888,0.1797,2782.0,2781.1,1.79786]
[1643748811077,0.1797,2782.0,2781.3,0.3]
[1643748811378,0.1797,2782.2,2781.3,0.3]
[1643748811576,6.04810487,2782.5,2781.3,0.3]
[1643748811577,1.5186314,2782.1,2781.3,0.3]
[1643748811776,0.7766878,2781.7,2781.1,0.89894]
[1643748811975,0.7766878,2781.7,2781.3,0.3]
[1643748812681,0.1797,2782.2,2781.3,0.3]
[1643748812977,1.51863996,2782.1,2781.4,0.89883]
[1643748813180,1.51863996,2782.1,2781.5,0.3]
[1643748813382,2.0081771,2782.0,2781.4,0.89883]
[1643748813782,2.00398089,2781.9,2781.4,0.89883]
[1643748813987,2.16373626,2782.0,2781.4,0.89883]
[1643748814620,2.46373626,2782.0,2781.4,0.89883]
[1643748815120,0.75794634,2781.6,2781.4,0.89883]
[1643748815527,0.4797,2782.0,2781.4,0.89883]
[1643748815725,0.1797,2782.1,2781.4,0.89883]
[1643748815928,0.1797,2782.1,2781.6,0.32078035]
[1643748816127,5.68249108,2782.7,2781.6,1.21949035]
[1643748816128,0.1797,2782.6,2781.6,1.21949035]
[1643748816327,1.51844082,2782.5,2781.6,0.89871]
[1643748816530,0.69797932,2782.4,2781.6,1.19871]
[1643748817527,0.69797932,2782.4,2781.7,0.89869]
[1643748817728,0.69797932,2782.4,2781.8,0.89872]
[1643748818193,1.51848211,2782.3,2781.9,0.3]
[1643748818394,0.69797932,2782.4,2781.9,0.3]
[1643748818592,0.1797,2782.6,2781.9,0.3]
[1643748818790,1.51845441,2782.5,2781.9,0.3]
[1643748819191,1.51845441,2782.6,2781.9,0.3]
[1643748819492,0.1797,2782.5,2781.9,0.3]
[1643748819693,1.51845441,2782.4,2781.9,0.3]
[1643748821598,1.51845441,2782.4,2781.8,2.7974]
[1643748821826,1.51845441,2782.4,2781.8,1.7974]
[1643748822025,1.51845441,2782.4,2781.9,0.3]
[1643748822432,1.51845441,2782.3,2781.9,0.3]
[1643748822627,0.1797,2782.7,2781.9,0.3]
[1643748822628,0.1797,2782.7,2781.9,1.0]
[1643748822828,1.51840282,2782.6,2781.8,2.7974]
[1643748823833,1.51840282,2782.6,2782.1,0.89862]
[1643748824237,1.51840282,2782.6,2782.2,0.3]
[1643748824435,1.51840282,2782.5,2782.2,0.3]
[1643748824633,0.1797,2783.0,2782.2,0.3]
[1643748824837,1.51834372,2782.9,2782.2,0.3]
[1643748825035,0.1796,2782.8,2782.2,0.3]
[1643748825232,1.51834372,2782.7,2782.2,0.3]
[1643748826276,1.51701155,2782.7,2782.0,1.89862]
[1643748826473,1.51701155,2782.7,2781.9,2.95425]
[1643748826673,1.51701155,2782.7,2781.9,1.79715]
[1643748826972,0.73102744,2782.3,2781.9,1.79715]
[1643748827377,0.73102744,2782.3,2781.6,7.88522]
[1643748827574,0.73102744,2782.3,2781.7,1.0]
[1643748827774,0.73102744,2782.3,2781.6,3.89472]
[1643748827974,0.1797,2782.6,2781.7,1.0]
[1643748828180,0.1797,2782.6,2781.8,0.89873]
[1643748828581,0.1797,2782.6,2781.9,0.3]
[1643748828778,1.1782,2782.9,2781.9,0.3]
[1643748828779,0.1797,2782.8,2781.9,0.3]
[1643748829078,0.1797,2782.8,2781.8,1.79743]
[1643748829328,0.1797,2782.8,2781.9,0.3]
[1643748829722,2.43636158,2782.8,2781.9,0.3]
[1643748830022,23.61636158,2782.8,2781.9,0.3]
[1643748830222,21.3597,2782.8,2781.9,0.3]
[1643748830422,0.67762373,2782.3,2781.9,0.3]
[1643748831026,0.1797,2782.6,2781.9,0.3]
[1643748831225,0.89349696,2783.0,2781.9,0.3]
[1643748831226,0.1797,2782.8,2782.1,0.89862]
[1643748831425,0.4796,2782.9,2782.2,0.89857]
[1643748831624,0.1796,2782.9,2782.2,1.19857]
[1643748832223,0.70678954,2782.6,2782.2,1.19857]
[1643748832424,0.70678954,2782.6,2782.2,2.09714]
[1643748833489,0.70678954,2782.6,2781.9,2.92264]
[1643748833694,1.00678954,2782.6,2781.9,1.79714]
[1643748833890,1.00678954,2782.6,2781.9,2.09714]
[1643748834092,1.00678954,2782.6,2781.9,3.09714]
[1643748835594,1.00678954,2782.6,2782.0,0.89866]
[1643748835793,1.00678954,2782.6,2782.0,1.89866]
[1643748837232,0.70678954,2782.6,2782.0,1.89866]
[1643748837434,0.1796,2782.9,2782.2,0.89861]
[1643748837632,0.1796,2782.9,2782.2,1.79721]
[1643748837832,0.1796,2782.9,2782.2,2.09721]
[1643748838536,0.80486614,2782.8,2782.2,2.09721]
[1643748838740,1.10486614,2782.8,2782.2,2.09721]
[1643748840439,1.10486614,2782.8,2782.4,0.25]
[1643748842077,1.10486614,2782.8,2782.4,1.14859]
[1643748843682,1.10486614,2782.8,2782.4,0.25]
[1643748843986,22.28486614,2782.8,2782.4,0.25]
[1643748844426,22.28486614,2782.8,2782.4,0.03763536]
[1643748844427,1.94815799,2782.7,2782.4,0.03763536]
[1643748844628,1.94815799,2782.7,2781.4,3.6504]
[1643748844629,21.3596,2782.6,2781.4,0.1796]
[1643748844828,21.3596,2782.6,2781.3,0.25]
[1643748844829,0.8989176,2782.4,2781.3,0.25]
[1643748845026,0.75798538,2781.4,2781.0,6.22422]
[1643748845227,0.75798538,2781.4,2781.0,1.79782]
[1643748845627,0.75798538,2781.4,2780.7,2.74782]
[1643748846830,0.37305543,2781.3,2781.0,0.89901]
[1643748847431,0.37305543,2781.3,2781.1,0.3]
[1643748849079,0.75798538,2781.4,2781.1,0.3]
[1643748849679,0.1797,2781.9,2781.1,0.3]
[1643748849879,1.51866887,2781.8,2781.3,0.89891]
[1643748850082,1.88312205,2781.8,2781.3,0.89891]
[1643748850283,0.1797,2782.3,2781.3,0.89891]
[1643748850485,1.51850693,2782.2,2781.4,0.01274081]
[1643748850684,1.51850693,2782.2,2781.5,0.89864]
[1643748850685,0.95224016,2782.2,2781.5,0.89864]
[1643748851083,0.95224016,2782.2,2781.7,0.89864]
[1643748851284,0.44586385,2781.8,2781.7,1.89864]
[1643748851684,0.44586385,2781.8,2781.7,1.3]
[1643748851936,0.95224016,2782.2,2781.8,0.3]
[1643748852132,1.51847778,2782.1,2781.8,0.3]
[1643748852334,0.95224016,2782.2,2781.7,1.3]
[1643748853136,1.36581965,2782.2,2781.7,1.3]
[1643748853639,0.1797,2782.7,2781.8,0.89876]
[1643748853841,1.5183462,2782.6,2781.9,0.3]
[1643748854040,1.5183462,2782.5,2782.0,1.79705]
[1643748854242,0.3,2782.8,2782.0,2.79705]
[1643748854243,1.5183462,2782.4,2782.0,2.79705]
[1643748854442,0.79675734,2782.5,2782.0,2.79705]
[1643748854638,1.51828995,2782.4,2782.0,2.79705]
[1643748854839,0.4797,2782.9,2782.0,2.79705]
[1643748855039,1.51827185,2782.8,2782.2,0.89856]
[1643748855247,1.51827185,2782.8,2782.2,2.99557]
[1643748855685,1.51827185,2782.8,2782.2,1.79701]
[1643748855686,0.76515562,2782.7,2782.2,1.79701]
[1643748855988,1.51827185,2782.6,2781.9,0.3]
[1643748856184,2.06408163,2782.5,2781.6,2.5012]
[1643748856387,2.06408163,2782.5,2781.6,1.5012]
[1643748856388,1.51827185,2782.4,2781.6,1.5012]
[1643748856585,0.32660577,2782.0,2781.7,1.0]
[1643748856786,0.4797,2782.6,2781.5,1.3]
[1643748856989,1.5184165,2782.5,2781.8,1.79734]
[1643748857485,0.91274476,2782.2,2781.9,0.3]
[1643748857686,0.91274476,2782.2,2781.8,2.79734]
[1643748857886,1.24378423,2782.2,2781.8,2.79734]
[1643748858290,1.10009782,2782.2,2781.8,2.79734]
[1643748858492,1.5184567,2782.1,2781.8,2.79734]
[1643748859329,0.1797,2782.7,2781.9,1.19865]
[1643748859537,0.1797,2782.7,2781.9,0.89865]
[1643748859538,1.51841,2782.6,2781.9,0.89865]
[1643748859731,1.51841,2782.6,2781.8,2.79734]
[1643748859928,6.0315452,2782.6,2781.8,2.79734]
[1643748860127,1.12236282,2782.1,2781.8,2.79734]
[1643748860531,1.5185054,2782.0,2781.4,0.1797]
[1643748860739,1.5185054,2782.0,2781.3,3.34752]
[1643748860931,1.5185054,2782.0,2781.3,3.09752]
[1643748861530,1.5185054,2782.0,2781.3,2.09752]
[1643748861736,1.5185054,2782.0,2781.4,1.79757]
[1643748862137,1.5185054,2782.0,2781.4,2.79757]
[1643748864580,3.54152127,2782.0,2781.4,2.79757]
[1643748864783,1.5185054,2781.9,2781.4,1.79757]
[1643748864979,1.5185054,2781.9,2781.3,0.3]
[1643748864980,0.7447996,2781.5,2781.3,0.3]
[1643748866381,0.7447996,2781.5,2781.0,1.79767]
[1643748866382,0.7447996,2781.5,2780.9,1.97758]
[1643748867230,0.7447996,2781.5,2780.9,1.97650718]
[1643748867435,0.41755867,2781.2,2780.9,1.97650718]
[1643748867631,0.41755867,2781.2,2780.7,1.95]
[1643748867632,0.76741277,2781.0,2780.7,1.84908]
[1643748868234,0.76741277,2781.0,2780.7,0.95]
[1643748870782,0.1797,2780.9,2780.7,1.25]
[1643748870984,0.1797,2781.5,2780.7,1.25]
[1643748871182,0.1797,2781.7,2780.7,1.25]
[1643748871396,0.1797,2781.4,2780.7,1.25]
[1643748871582,0.1797,2781.5,2780.7,1.25]
[1643748871781,0.80923208,2781.5,2780.7,3.73465147]
[1643748871983,0.1797,2781.4,2780.8,1.89904]
[1643748872187,3.94852,2782.5,2780.8,1.89904]
[1643748872188,0.1797,2781.8,2780.9,1.79765]
[1643748872382,4.9117,2782.4,2780.9,1.79765]
[1643748872383,0.1797,2782.3,2780.9,1.79765]
[1643748872688,0.1797,2782.3,2780.9,2.09765]
[1643748872689,1.51864732,2782.2,2780.9,2.09765]
[1643748872982,0.94619457,2781.8,2780.9,2.09765]
[1643748873188,0.94619457,2781.8,2781.1,1.79757]
[1643748873389,0.94619457,2781.8,2781.1,0.89881]
[1643748873588,0.94619457,2781.8,2781.0,3.59513]
[1643748873786,1.69850922,2781.7,2781.0,1.79761]
[1643748873987,0.1797,2781.7,2781.0,1.79761]
[1643748874187,0.1797,2781.7,2781.0,2.69657]
[1643748874428,0.1797,2781.7,2781.1,0.3]
[1643748874630,0.1797,2781.9,2781.3,0.89886]
[1643748874827,5.4297,2782.4,2781.3,0.89886]
[1643748874828,0.1797,2782.3,2781.3,0.89886]
[1643748875027,1.5187112,2782.2,2781.3,0.89886]
[1643748875232,0.1797,2782.1,2781.3,0.89886]
[1643748875428,1.5187112,2782.0,2781.3,0.89886]
[1643748875630,0.68670446,2781.6,2781.3,0.89886]
[1643748876930,0.1797,2781.9,2781.3,0.89886]
[1643748877131,0.1797,2782.1,2781.3,1.7977]
[1643748877331,1.51864877,2782.0,2781.3,0.89886]
[1643748877741,3.53495525,2781.9,2781.3,0.89886]
[1643748877932,0.1797,2782.0,2781.3,0.89886]
[1643748878184,0.1797,2782.2,2781.3,1.79771]
[1643748878380,1.51865599,2782.1,2781.3,1.79771]
[1643748878681,0.89981368,2781.9,2781.3,1.79771]
[1643748879882,0.1797,2782.0,2781.3,1.79771]
[1643748880085,0.1797,2782.3,2781.3,1.79771]
[1643748880288,1.51855866,2782.2,2781.6,0.89878]
[1643748880489,22.37671142,2782.6,2781.6,0.89878]
[1643748880490,0.1797,2782.1,2781.6,0.89878]
[1643748880688,0.66581956,2782.9,2781.8,6.8]
[1643748880886,0.84551956,2782.9,2782.0,1.01208391]
[1643748881094,2.19069376,2783.6,2782.7,0.4092084]
[1643748881299,2.40453974,2783.8,2782.8,2.98724433]
[1643748881300,1.51813663,2783.5,2782.8,2.98724433]
[1643748881489,5.8861145,2784.0,2783.2,0.8980558]
[1643748881490,2.20039179,2784.0,2783.2,0.8980558]
[1643748881699,1.3452742,2784.7,2783.4,7.8]
[1643748881700,2.27763786,2784.6,2783.4,7.8]
[1643748881930,0.66581956,2784.9,2783.6,0.89784]
[1643748882128,0.66581956,2784.5,2783.5,1.00973591]
[1643748882327,0.66581956,2784.6,2783.7,0.75811931]
[1643748882529,0.66581956,2784.7,2783.7,4.05176701]
[1643748882726,0.66581956,2784.7,2783.8,1.0]
[1643748882931,0.1794,2784.9,2783.9,0.17932]
[1643748883132,0.1794,2784.9,2784.5,0.44837425]
[1643748883334,0.2792781,2785.0,2784.7,0.7255727]
[1643748883335,0.4586781,2785.0,2784.7,0.7255727]
[1643748883532,0.2792781,2785.0,2784.7,0.7255727]
[1643748883735,0.2792781,2785.0,2784.7,1.0255727]
[1643748884334,0.2792781,2785.0,2784.7,0.3]
[1643748884532,0.2792781,2785.0,2784.3,1.0]
[1643748884735,0.2792781,2785.0,2784.3,1.3]
[1643748884936,0.94509766,2785.0,2784.3,1.3]
[1643748885137,0.94509766,2785.0,2784.2,0.3]
[1643748885138,0.2792781,2785.0,2784.2,0.3]
[1643748885334,0.4586781,2785.0,2784.1,0.3]
[1643748885581,0.4586781,2785.0,2784.2,0.87886324]
[1643748885878,0.4586781,2785.0,2784.2,2.91868277]
[1643748886077,0.2792781,2785.0,2784.2,2.91868277]
[1643748886278,0.2792781,2785.0,2784.4,0.3]
[1643748887276,0.2792781,2785.0,2784.2,2.17886324]
[1643748887678,0.2792781,2785.0,2784.3,0.89781]
[1643748887879,0.2792781,2785.0,2784.4,0.3]
[1643748888783,0.2792781,2785.0,2784.2,2.17886324]
[1643748889426,0.2792781,2785.0,2784.2,1.3]
[1643748890327,0.2792781,2785.0,2784.2,1.0]
[1643748890529,0.2792781,2785.0,2784.3,0.89781]
[1643748890733,0.2792781,2785.0,2784.5,1.79516]
[1643748890935,0.2792781,2785.0,2784.5,1.98679698]
[1643748891128,0.2792781,2785.0,2784.6,0.6]
[1643748891329,0.2792781,2785.0,2784.7,0.1794]
[1643748891530,0.2792781,2785.0,2784.9,5.9194779]
[1643748891730,0.2792781,2785.0,2784.9,0.6694779]
[1643748891928,0.2792781,2785.0,2784.9,1.3]
[1643748892136,0.2792781,2785.0,2784.7,0.1794]
[1643748892333,0.2792781,2785.0,2784.5,1.79516]
[1643748892528,0.2792781,2785.0,2784.6,0.3]
[1643748893184,0.2792781,2785.0,2784.6,1.22660356]
[1643748893380,0.2792781,2785.0,2784.6,2.22660356]
[1643748893780,0.2792781,2785.0,2784.6,1.92660356]
[1643748895582,0.2792781,2785.0,2784.6,1.0]
[1643748895783,0.2792781,2785.0,2784.3,1.1794]
[1643748895981,0.2792781,2785.0,2784.3,1.0]
[1643748896185,0.2792781,2785.0,2784.2,1.0]
[1643748896383,0.2792781,2785.0,2784.0,2.79562]
[1643748896582,0.93045432,2784.9,2784.0,2.52066301]
[1643748897428,0.4586781,2785.0,2784.0,2.52066301]
[1643748897825,0.4586781,2785.0,2784.1,1.0]
[1643748898027,0.2792781,2785.0,2784.1,1.3]
[1643748898229,0.2792781,2785.0,2784.1,1.0]
[1643748898429,0.84640415,2784.9,2784.1,1.0]
[1643748898835,0.84640415,2784.9,2784.1,0.3]
[1643748899033,1.14640415,2784.9,2784.1,0.3]
[1643748899232,1.14640415,2784.9,2783.9,0.1794]
[1643748899431,0.1794,2784.8,2783.8,0.25]
[1643748899631,0.1794,2784.8,2783.7,0.86478644]
[1643748900333,0.1794,2784.8,2783.6,0.50999014]
[1643748900334,0.1794,2784.8,2783.6,0.1794]
[1643748900585,0.1794,2784.8,2783.4,2.69345]
[1643748900788,0.17934,2784.7,2783.4,0.3]
[1643748900984,0.1794,2784.6,2783.4,0.3]
[1643748901183,0.52815621,2784.6,2783.4,0.73826068]
[1643748901390,0.73770965,2784.4,2783.5,0.76594547]
[1643748901586,0.17934,2784.7,2783.6,0.89802]
[1643748901587,0.1796,2784.3,2783.6,0.89802]
[1643748901785,0.1796,2784.6,2783.6,3.07989579]
[1643748901989,0.1794,2784.7,2783.7,0.3]
[1643748902185,0.1794,2784.9,2783.8,2.26686592]
[1643748902587,0.1794,2784.9,2783.7,1.3]
[1643748902588,0.1794,2784.9,2783.9,0.33769922]
[1643748902885,0.85911427,2784.7,2783.7,1.3]
[1643748903087,0.1794,2784.6,2783.7,1.3]
[1643748903286,0.1794,2784.6,2783.7,0.3]
[1643748903485,0.1794,2784.6,2783.6,1.0]
[1643748903687,0.1794,2784.6,2783.6,0.89802]
[1643748903890,0.1794,2784.6,2783.6,1.26973556]
[1643748904087,0.1794,2784.6,2783.7,0.3]
[1643748904825,0.1794,2784.6,2783.6,1.89802]
[1643748905029,0.66986326,2784.2,2783.4,0.1794]
[1643748905227,0.66986326,2784.2,2783.3,1.0]
[1643748905228,0.1796,2784.1,2783.3,1.0]
[1643748905427,0.1796,2784.1,2783.2,1.3]
[1643748905626,0.1796,2784.1,2783.2,0.3]
[1643748905828,0.1796,2784.1,2783.2,0.89815]
[1643748906028,0.1796,2784.1,2783.2,2.89815]
[1643748906227,0.69734,2784.7,2783.2,2.89815]
[1643748906228,0.99734,2784.7,2783.3,1.0]
[1643748906532,0.99734,2784.7,2783.3,2.79606]
[1643748906533,0.1794,2784.6,2783.3,2.79606]
[1643748906726,0.1794,2784.6,2783.7,1.09396789]
[1643748906727,0.98683433,2784.6,2783.7,1.09396789]